bitfinex/quotes_SOLUSD_20230702
["timestamp","ask_amount","ask_price","bid_price","bid_amount"]
[1688277601827,22.329,18.944,18.935,22.339]
[1688277602027,55.0,18.943,18.933,97.0496]
[1688277602347,22.333,18.94,18.93,19.93]
[1688277602545,22.333,18.94,18.931,20.0]
[1688277602739,19.93,18.95,18.933,22.341]
[1688277602957,57.477,18.947,18.934,15.14292173]
[1688277603232,57.477,18.947,18.933,22.341]
[1688277603233,22.332,18.942,18.931,20.0]
[1688277603440,22.332,18.942,18.932,2.77479672]
[1688277603635,22.329,18.944,18.933,22.34]
[1688277603839,55.0,18.949,18.933,22.34]
[1688277603840,21.136738,18.948,18.933,22.34]
[1688277604044,63.11666563,18.947,18.934,8.3614164]
[1688277604340,30.44266563,18.947,18.937,22.336]
[1688277604539,22.326,18.947,18.937,22.336]
[1688277604934,22.326,18.947,18.938,1.8176142]
[1688277605130,22.327,18.946,18.938,1.8176142]
[1688277605329,22.327,18.946,18.939,22.334]
[1688277606734,22.327,18.946,18.932,96.4969]
[1688277606735,22.327,18.946,18.935,4.56173554]
[1688277606934,22.327,18.946,18.938,22.334]
[1688277607648,22.327,18.946,18.932,96.4969]
[1688277607845,4.7462134,18.945,18.933,8.40047184]
[1688277608047,4.7462134,18.945,18.935,22.338]
[1688277608230,5.71648005,18.948,18.936,8.40047184]
[1688277608430,22.328,18.945,18.939,22.334]
[1688277609241,22.328,18.945,18.938,22.335]
[1688277609450,22.328,18.945,18.932,96.4969]
[1688277609646,2.89482122,18.944,18.933,6.70029431]
[1688277609826,22.332,18.941,18.933,6.70029431]
[1688277610141,22.336,18.938,18.929,22.345]
[1688277611942,22.336,18.938,18.923,97.4957]
[1688277611943,22.34,18.935,18.924,3.37174053]
[1688277612537,22.34,18.935,18.923,22.353]
[1688277612538,22.344,18.931,18.923,22.353]
[1688277612745,22.344,18.931,18.922,22.353]
[1688277613139,22.344,18.931,18.913,95.2026]
[1688277613335,4.37932302,18.93,18.921,20.0]
[1688277613535,4.37932302,18.93,18.922,22.354]
[1688277613735,4.37932302,18.932,18.922,22.354]
[1688277614139,4.37932302,18.933,18.923,3.78537783]
[1688277614337,22.345,18.931,18.926,22.35]
[1688277614841,22.343,18.932,18.926,22.349]
[1688277615037,55.0,18.934,18.926,22.349]
[1688277615547,22.343,18.933,18.925,22.35]
[1688277616144,55.0,18.934,18.925,22.35]
[1688277617739,22.342,18.933,18.925,22.35]
[1688277617939,22.342,18.933,18.921,20.0]
[1688277618143,2.94111245,18.932,18.922,3.19390733]
[1688277618344,22.345,18.93,18.925,22.35]
[1688277619053,22.345,18.93,18.924,22.351]
[1688277619278,22.345,18.93,18.924,22.352]
[1688277620954,22.345,18.93,18.922,22.353]
[1688277621250,22.345,18.93,18.91,77.476]
[1688277621251,55.0,18.929,18.91,77.476]
[1688277621460,22.352,18.925,18.918,22.359]
[1688277622151,22.352,18.925,18.913,95.2026]
[1688277622355,22.352,18.925,18.918,22.358]
[1688277624247,22.352,18.925,18.913,95.2026]
[1688277624452,22.356,18.921,18.917,22.36]
[1688277624650,77.353,18.924,18.916,22.361]
[1688277624845,57.532,18.929,18.917,2.54900008]
[1688277625047,22.352,18.924,18.913,95.2026]
[1688277625246,22.356,18.921,18.915,22.362]
[1688277625851,22.356,18.921,18.91,19.89]
[1688277625852,22.356,18.921,18.912,22.365]
[1688277626048,55.0,18.92,18.912,22.366]
[1688277626362,22.36,18.918,18.912,22.366]
[1688277626562,22.36,18.918,18.905,131.15469537]
[1688277626773,22.36,18.918,18.906,22.68743812]
[1688277627259,22.36,18.918,18.906,2.68743812]
[1688277627260,55.0,18.917,18.906,2.68743812]
[1688277627445,55.0,18.917,18.901,94.9161]
[1688277627446,22.364,18.914,18.905,22.374]
[1688277627641,55.0,18.913,18.905,22.374]
[1688277627846,22.368,18.911,18.903,22.376]
[1688277628047,22.368,18.911,18.9,19.89]
[1688277628454,55.0,18.91,18.901,20.0]
[1688277628650,22.372,18.908,18.901,20.0]
[1688277629157,22.372,18.908,18.901,42.379]
[1688277629551,57.58,18.913,18.901,42.379]
[1688277629754,55.0,18.912,18.901,42.379]
[1688277630664,22.369,18.91,18.901,42.379]
[1688277631157,22.369,18.91,18.895,10.83719922]
[1688277631365,55.0,18.909,18.896,57.628]
[1688277631657,22.374,18.906,18.896,57.628]
[1688277632059,22.372,18.908,18.901,22.379]
[1688277633151,22.372,18.908,18.897,22.383]
[1688277633565,55.0,18.907,18.897,22.383]
[1688277633862,22.376,18.904,18.894,94.9161]
[1688277634171,22.382,18.9,18.89,20.18]
[1688277634356,22.382,18.9,18.893,22.388]
[1688277635948,55.0,18.899,18.886,57.658]
[1688277636151,22.385,18.897,18.887,20.0]
[1688277636759,22.388,18.904,18.889,127.585]
[1688277637071,22.378,18.903,18.89,21.34363196]
[1688277637272,22.378,18.903,18.893,22.388]
[1688277638468,55.0,18.902,18.893,22.388]
[1688277638670,22.381,18.9,18.893,22.388]
[1688277639769,22.377,18.903,18.893,22.388]
[1688277639950,57.605,18.907,18.893,22.388]
[1688277640155,57.578,18.914,18.894,55.0]
[1688277640464,57.578,18.914,18.9,22.38]
[1688277640465,22.371,18.909,18.9,22.38]
[1688277640848,20.0,18.913,18.9,22.38]
[1688277641158,22.371,18.913,18.904,79.981]
[1688277642170,22.366,18.913,18.904,79.981]
[1688277643373,22.364,18.914,18.904,79.981]
[1688277644178,57.557,18.921,18.904,79.981]
[1688277644381,22.364,18.914,18.904,79.981]
[1688277644668,162.575,18.922,18.905,2.68597163]
[1688277644669,115.116,18.922,18.905,2.68597163]
[1688277644980,22.362,18.916,18.91,22.368]
[1688277645158,22.362,18.916,18.901,154.9458]
[1688277645358,22.362,18.916,18.902,75.0]
[1688277645972,22.362,18.916,18.903,22.376]
[1688277647472,22.362,18.916,18.904,55.0]
[1688277647680,22.362,18.916,18.907,22.371]
[1688277648185,22.362,18.916,18.907,22.372]
[1688277650476,22.366,18.913,18.906,22.373]
[1688277650674,22.366,18.913,18.905,22.373]
[1688277651263,57.566,18.918,18.905,22.373]
[1688277652068,105.028,18.919,18.905,22.373]
[1688277652276,22.366,18.913,18.905,22.373]
[1688277653284,57.561,18.919,18.905,22.373]
[1688277653872,22.363,18.915,18.905,22.373]
[1688277655984,22.363,18.916,18.906,55.0]
[1688277656183,22.363,18.916,18.909,22.37]
[1688277656685,22.36,18.918,18.909,22.37]
[1688277656866,22.359,18.919,18.913,22.364]
[1688277657682,22.358,18.92,18.913,22.364]
[1688277657871,22.357,18.92,18.913,22.364]
[1688277658274,22.357,18.92,18.91,20.0]
[1688277658581,22.357,18.92,18.907,57.595]
[1688277658582,22.357,18.92,18.912,22.365]
[1688277659670,57.542,18.926,18.912,22.365]
[1688277659988,22.355,18.922,18.912,22.365]
[1688277661290,97.5408,18.929,18.912,22.365]
[1688277661478,55.0,18.928,18.912,22.365]
[1688277662779,22.355,18.922,18.912,22.365]
[1688277665272,104.925,18.938,18.913,55.0]
[1688277665585,104.925,18.938,18.92,22.356]
[1688277665586,22.344,18.931,18.92,22.356]
[1688277666371,22.343,18.932,18.92,22.356]
[1688277668684,22.338,18.936,18.921,55.0]
[1688277668892,22.338,18.936,18.922,42.353]
[1688277669069,22.339,18.936,18.922,42.353]
[1688277669788,79.848,18.936,18.922,22.353]
[1688277670869,57.501,18.94,18.922,22.353]
[1688277671071,22.337,18.937,18.922,22.353]
[1688277672088,22.337,18.937,18.927,79.884]
[1688277673294,22.337,18.937,18.927,22.348]
[1688277681095,77.494,18.942,18.927,22.348]
[1688277681396,77.333,18.941,18.927,22.348]
[1688277681891,22.333,18.941,18.927,22.348]
[1688277683307,44.666,18.941,18.927,22.348]
[1688277683599,22.338,18.937,18.927,22.348]
[1688277698125,74.79,18.94,18.927,22.348]
[1688277698418,22.335,18.939,18.927,33.18519922]
[1688277698608,22.335,18.939,18.928,10.83719922]
[1688277698809,22.335,18.939,18.931,22.343]
[1688277711921,22.334,18.94,18.932,20.0]
[1688277712227,22.333,18.941,18.934,22.34]
[1688277713216,22.328,18.945,18.934,22.34]
[1688277717238,55.0,18.944,18.934,22.34]
[1688277717429,22.332,18.941,18.934,22.34]
[1688277718231,55.0,18.944,18.934,22.34]
[1688277718431,55.0,18.945,18.934,22.34]
[1688277719134,22.331,18.942,18.934,22.34]
[1688277721431,22.329,18.944,18.934,22.34]
[1688277721625,114.998,18.949,18.934,22.34]
[1688277722736,22.33,18.943,18.934,22.34]
[1688277725739,55.0,18.948,18.934,22.34]
[1688277725941,22.33,18.943,18.934,22.34]
[1688277733049,112.473,18.948,18.934,22.34]
[1688277733050,55.0,18.948,18.934,22.34]
[1688277734034,22.328,18.945,18.934,22.34]
[1688277734429,55.0,18.944,18.934,22.34]
[1688277734747,22.332,18.941,18.934,22.34]
[1688277736229,22.332,18.942,18.934,22.34]
[1688277737436,22.332,18.942,18.925,26.44423961]
[1688277737437,19.94,18.94,18.925,26.44423961]
[1688277737643,22.336,18.938,18.932,22.342]
[1688277737826,22.335,18.939,18.931,22.343]
[1688277738034,22.338,18.936,18.931,22.343]
[1688277740044,57.487,18.944,18.931,22.343]
[1688277740235,22.337,18.937,18.931,22.343]
[1688277748354,22.337,18.937,18.925,10.83719922]
[1688277748559,22.337,18.937,18.926,55.0]
[1688277748855,22.337,18.937,18.927,10.83719922]
[1688277749556,22.338,18.937,18.931,22.343]
[1688277750448,22.338,18.937,18.927,10.83719922]
[1688277751855,22.338,18.937,18.931,22.343]
[1688277753351,57.495,18.941,18.931,22.343]
[1688277753561,22.338,18.937,18.931,22.343]
[1688277755259,162.375,18.945,18.931,22.343]
[1688277755462,22.334,18.94,18.932,20.0]
[1688277755647,22.334,18.94,18.934,22.34]
[1688277756557,22.327,18.945,18.934,22.34]
[1688277756769,124.648,18.95,18.934,33.17719922]
[1688277757668,202.169,18.95,18.934,33.17719922]
[1688277757864,22.331,18.942,18.934,33.17719922]
[1688277758090,202.169,18.95,18.934,33.17719922]
[1688277758368,112.471,18.949,18.934,33.17719922]
[1688277759169,22.329,18.944,18.934,33.17719922]
[1688277760462,22.329,18.944,18.934,22.34]
[1688277761469,42.123,18.94,18.932,22.342]
[1688277761673,22.337,18.937,18.932,22.342]
[1688277764669,22.337,18.937,18.926,57.537]
[1688277764859,22.337,18.937,18.931,22.343]
[1688277765059,18.337,18.937,18.931,22.343]
[1688277766657,18.337,18.937,18.93,22.344]
[1688277770673,18.337,18.937,18.923,68.38319922]
[1688277770872,55.0,18.936,18.928,22.347]
[1688277771077,22.341,18.934,18.928,22.347]
[1688277771462,22.341,18.934,18.927,22.348]
[1688277774279,22.341,18.934,18.92,77.495]
[1688277774473,55.0,18.933,18.924,22.351]
[1688277774672,22.345,18.931,18.923,22.352]
[1688277774966,55.0,18.93,18.917,57.564]
[1688277775167,22.35,18.927,18.92,22.356]
[1688277775567,22.35,18.927,18.917,22.36]
[1688277775568,55.0,18.926,18.917,22.36]
[1688277775768,22.353,18.924,18.916,22.36]
[1688277775964,55.0,18.923,18.917,22.36]
[1688277776274,77.354,18.923,18.912,57.579]
[1688277776482,77.354,18.923,18.917,22.36]
[1688277779281,77.354,18.923,18.911,105.07]
[1688277779478,77.354,18.923,18.912,20.0]
[1688277780888,77.354,18.923,18.914,22.363]
[1688277783184,55.0,18.923,18.914,22.363]
[1688277783580,22.36,18.927,18.914,22.363]
[1688277783778,22.35,18.926,18.914,22.363]
[1688277786287,22.354,18.922,18.914,22.363]
[1688277786882,22.354,18.923,18.914,22.363]
[1688277791097,55.0,18.925,18.914,22.363]
[1688277791995,22.353,18.923,18.914,22.363]
[1688277794394,55.0,18.922,18.914,22.363]
[1688277794595,22.357,18.92,18.914,22.363]
[1688277796501,55.0,18.919,18.913,22.365]
[1688277796704,55.0,18.919,18.91,22.368]
[1688277796705,22.363,18.915,18.91,22.368]
[1688277796914,22.363,18.915,18.905,57.603]
[1688277796915,22.363,18.915,18.909,22.37]
[1688277797096,22.363,18.915,18.908,22.37]
[1688277797405,22.363,18.915,18.907,22.371]
[1688277797406,55.0,18.914,18.907,22.371]
[1688277797698,22.366,18.912,18.907,22.371]
[1688277797899,22.366,18.913,18.907,22.371]
[1688277798112,55.0,18.914,18.907,22.371]
[1688277798113,22.364,18.914,18.907,22.371]
[1688277798405,77.35,18.92,18.907,22.371]
[1688277798594,55.0,18.919,18.907,22.371]
[1688277799807,22.364,18.914,18.907,22.371]
[1688277804001,22.363,18.915,18.907,22.371]
[1688277808401,19.79,18.92,18.907,79.968]
[1688277808628,22.363,18.915,18.907,22.371]
[1688277809303,22.363,18.915,18.9,125.067]
[1688277809304,22.363,18.915,18.906,22.373]
[1688277810206,22.363,18.915,18.901,57.613]
[1688277810407,22.363,18.915,18.902,19.5]
[1688277810623,22.363,18.915,18.905,22.374]
[1688277818708,77.349,18.92,18.905,22.374]
[1688277818908,22.363,18.915,18.905,22.374]
[1688277819307,22.363,18.916,18.905,22.374]
[1688277824616,22.363,18.916,18.904,22.375]
[1688277824825,22.367,18.912,18.902,19.5]
[1688277825014,22.367,18.912,18.901,20.0]
[1688277825219,55.0,18.915,18.901,20.0]
[1688277825220,22.371,18.908,18.901,20.0]
[1688277825430,22.371,18.908,18.9,22.379]
[1688277825628,22.371,18.908,18.901,20.0]
[1688277825806,22.371,18.908,18.897,20.0]
[1688277826725,22.371,18.908,18.901,22.379]
[1688277827027,22.371,18.908,18.902,42.378]
[1688277828720,22.371,18.908,18.893,57.638]
[1688277828912,22.376,18.904,18.897,22.384]
[1688277829112,22.376,18.904,18.891,95.3184]
[1688277829113,22.376,18.904,18.892,1.07843911]
[1688277829312,22.376,18.904,18.892,20.0]
[1688277830525,55.0,18.903,18.894,22.387]
[1688277830827,22.38,18.901,18.894,22.387]
[1688277831207,55.0,18.9,18.894,22.387]
[1688277831525,55.0,18.9,18.892,22.389]
[1688277831526,22.383,18.899,18.892,22.389]
[1688277834931,22.382,18.9,18.892,22.389]
[1688277836024,57.603,18.906,18.892,22.389]
[1688277836220,55.0,18.905,18.892,22.389]
[1688277836820,22.381,18.9,18.892,22.389]
[1688277838115,22.381,18.9,18.893,22.389]
[1688277840036,22.378,18.903,18.893,22.389]
[1688277850938,52.01382763,18.905,18.893,22.389]
[1688277851147,55.0,18.904,18.893,22.389]
[1688277851845,22.378,18.903,18.893,22.389]
[1688277862442,55.0,18.902,18.893,22.389]
[1688277862637,22.381,18.9,18.893,22.389]
[1688277862840,42.321,18.9,18.891,22.39]
[1688277863042,55.0,18.899,18.891,22.39]
[1688277863238,55.0,18.899,18.88,19.94]
[1688277863239,22.384,18.897,18.886,22.396]
[1688277863443,22.384,18.897,18.885,22.397]
[1688277863651,55.0,18.896,18.885,22.397]
[1688277863846,22.389,18.893,18.885,18.397]
[1688277865545,55.0,18.892,18.88,19.94]
[1688277865744,22.394,18.889,18.883,22.4]
[1688277866345,22.388,18.894,18.883,22.4]
[1688277868562,22.388,18.894,18.883,21.9]
[1688277871040,22.392,18.89,18.883,21.9]
[1688277871259,55.0,18.893,18.883,21.9]
[1688277872666,57.629,18.897,18.883,21.9]
[1688277872956,22.389,18.893,18.883,21.9]
[1688277877460,2.03613263,18.899,18.884,2.75227219]
[1688277877661,22.384,18.897,18.888,22.394]
[1688277879051,57.61,18.903,18.89,19.94]
[1688277879267,57.61,18.903,18.893,22.388]
[1688277879462,22.384,18.902,18.893,22.388]
[1688277879961,57.61,18.903,18.893,22.388]
[1688277880359,22.38,18.901,18.893,22.388]
[1688277880668,22.378,18.903,18.893,22.388]
[1688277882489,57.602,18.909,18.893,22.388]
[1688277882772,25.8651424,18.914,18.894,59.00025545]
[1688277882975,25.8651424,18.914,18.9,100.009]
[1688277883189,22.369,18.911,18.901,4.00025545]
[1688277883474,22.369,18.911,18.902,22.377]
[1688277885071,22.377,18.917,18.902,22.377]
[1688277885251,55.0,18.916,18.902,22.377]
[1688277885456,22.367,18.912,18.902,22.377]
[1688277888972,22.366,18.913,18.902,22.377]
[1688277889470,77.56,18.92,18.902,22.377]
[1688277889770,57.66043952,18.919,18.903,4.74502876]
[1688277890070,22.362,18.916,18.908,22.371]
[1688277890553,22.361,18.917,18.908,22.371]
[1688277890961,22.36,18.918,18.908,22.371]
[1688277891172,57.599,18.922,18.908,22.371]
[1688277891971,55.0,18.921,18.908,22.371]
[1688277892754,22.361,18.917,18.908,22.371]
[1688277893673,22.36,18.918,18.908,22.371]
[1688277893859,57.551,18.923,18.908,22.371]
[1688277894169,115.102,18.923,18.908,22.371]
[1688277894362,22.356,18.921,18.914,22.364]
[1688277894563,57.541,18.926,18.914,22.364]
[1688277894765,55.0,18.925,18.914,22.364]
[1688277895272,57.541,18.926,18.914,22.364]
[1688277895463,22.356,18.922,18.914,22.364]
[1688277900380,22.352,18.924,18.914,22.364]
[1688277904085,1.01531884,18.928,18.914,22.364]
[1688277904291,22.352,18.925,18.914,22.364]
[1688277906290,22.351,18.925,18.914,22.364]
[1688277906589,22.351,18.925,18.918,22.359]
[1688277910982,22.351,18.925,18.912,57.579]
[1688277911770,22.351,18.925,18.918,22.359]
[1688277913683,22.348,18.928,18.918,22.359]
[1688277914008,57.523,18.933,18.918,22.359]
[1688277914009,57.523,18.933,18.919,55.0]
[1688277914312,22.346,18.93,18.923,22.353]
[1688277914669,57.512,18.935,18.923,22.353]
[1688277914942,22.346,18.93,18.923,22.353]
[1688277916591,22.346,18.93,18.918,57.561]
[1688277916888,22.346,18.93,18.921,22.355]
[1688277919605,22.346,18.93,18.912,57.579]
[1688277919606,2.69945666,18.929,18.912,57.579]
[1688277919792,79.9,18.924,18.911,22.367]
[1688277919989,55.0,18.923,18.911,22.367]
[1688277920211,55.0,18.923,18.888,396.8]
[1688277920212,99.927,18.92,18.901,26.7942314]
[1688277920493,63.60806129,18.919,18.902,3.03972239]
[1688277920795,22.364,18.914,18.903,22.376]
[1688277924854,22.364,18.914,18.9,24.43908708]
[1688277925001,162.623,18.915,18.899,90.2265]
[1688277925002,22.369,18.91,18.901,20.0]
[1688277925188,22.369,18.91,18.902,22.377]
[1688277925383,57.572,18.916,18.902,22.377]
[1688277925583,22.368,18.911,18.902,22.377]
[1688277925799,55.0,18.915,18.902,22.377]
[1688277925980,22.364,18.914,18.902,22.377]
[1688277926186,22.377,18.919,18.903,0.95870743]
[1688277926500,22.363,18.916,18.907,22.371]
[1688277928247,22.377,18.919,18.907,22.371]
[1688277928394,57.542,18.926,18.908,20.0]
[1688277928600,22.354,18.923,18.913,22.365]
[1688277931540,79.885,18.928,18.913,33.20219922]
[1688277931698,22.348,18.928,18.918,79.922]
[1688277934307,35.6792495,18.938,18.918,79.922]
[1688277934308,19.89,18.94,18.92,20.01]
[1688277934500,22.34,18.935,18.925,79.893]
[1688277934889,104.886,18.945,18.925,79.893]
[1688277935086,104.886,18.945,18.92,20.01]
[1688277935087,6.00879427,18.944,18.932,22.342]
[1688277935288,57.501,18.942,18.932,22.342]
[1688277935483,20.0,18.95,18.932,22.342]
[1688277935484,20.0,18.95,18.932,33.17919922]
[1688277935705,20.0,18.95,18.937,79.841]
[1688277935706,22.325,18.947,18.937,79.841]
[1688277936702,103.90993069,18.959,18.937,79.841]
[1688277936703,22.32,18.952,18.938,85.83719922]
[1688277937065,104.776,18.965,18.944,22.328]
[1688277937300,4.69797092,18.964,18.944,33.16519922]
[1688277937897,22.314,18.957,18.944,33.16519922]
[1688277939500,22.314,18.957,18.945,65.83719922]
[1688277939703,22.314,18.957,18.948,22.323]
[1688277946905,22.303,18.966,18.95,19.93]
[1688277947010,57.405,18.971,18.95,19.93]
[1688277947011,22.302,18.967,18.955,79.765]
[1688277947208,57.398,18.973,18.955,79.765]
[1688277947513,39.77,18.98,18.95,19.93]
[1688277947514,124.522,18.98,18.96,79.744]
[1688277947710,22.295,18.973,18.96,22.309]
[1688277947995,20.0,18.972,18.96,22.309]
[1688277948216,22.298,18.971,18.96,22.309]
[1688277948409,22.298,18.971,18.96,33.14619922]
[1688277950400,22.298,18.971,18.96,22.309]
[1688277950603,55.0,18.97,18.96,22.309]
[1688277950803,20.0,18.972,18.96,22.309]
[1688277951005,204.5164,18.977,18.961,55.0]
[1688277951006,22.298,18.971,18.961,55.0]
[1688277951364,22.295,18.973,18.964,22.305]
[1688277951501,104.686,18.981,18.964,22.305]
[1688277951705,57.377,18.98,18.964,22.305]
[1688277951907,22.291,18.976,18.964,22.305]
[1688277953615,22.291,18.976,18.968,22.3]
[1688277955110,22.29,18.977,18.968,22.3]
[1688277957503,55.0,18.976,18.959,104.803]
[1688277957816,22.295,18.973,18.968,22.3]
[1688277958193,22.294,18.974,18.968,22.3]
[1688277970720,22.294,18.974,18.963,155.118]
[1688277970926,22.294,18.974,18.967,22.301]
[1688277971612,55.0,18.973,18.966,22.302]
[1688277972022,77.295,18.973,18.966,22.302]
[1688277972420,22.295,18.973,18.966,22.302]
[1688277973128,22.295,18.973,18.954,162.283]
[1688277973444,22.3,18.969,18.958,22.311]
[1688277973633,22.304,18.965,18.958,22.311]
[1688277988941,22.304,18.966,18.958,22.311]
[1688277992339,22.303,18.966,18.958,22.311]
[1688277993434,22.302,18.967,18.958,22.311]
[1688277997941,22.302,18.967,18.957,22.313]
[1688278004859,55.0,18.966,18.957,22.313]
[1688278005153,22.306,18.964,18.957,22.313]
[1688278007843,55.0,18.966,18.957,22.313]
[1688278009825,77.303,18.966,18.957,22.313]
[1688278010465,55.0,18.97,18.957,22.313]
[1688278010762,22.293,18.975,18.96,19.87]
[1688278010973,22.293,18.975,18.966,22.303]
[1688278011664,22.292,18.976,18.966,22.303]
[1688278012024,19.78,18.98,18.966,22.303]
[1688278012546,57.421,18.982,18.966,22.303]
[1688278013168,22.288,18.979,18.966,22.303]
[1688278013567,55.0,18.978,18.966,22.303]
[1688278013765,22.29,18.977,18.966,22.303]
[1688278013956,55.0,18.978,18.966,22.303]
[1688278013957,22.289,18.978,18.966,22.303]
[1688278014217,57.37,18.982,18.966,22.303]
[1688278014466,79.659,18.982,18.966,22.303]
[1688278015560,22.289,18.978,18.966,22.303]
[1688278015760,9.11633069,18.981,18.966,22.303]
[1688278015953,104.648,18.988,18.967,75.0]
[1688278016260,66.47333069,18.987,18.973,22.294]
[1688278016958,22.284,18.983,18.973,22.294]
[1688278017159,55.0,18.982,18.973,22.294]
[1688278017348,22.287,18.98,18.973,22.294]
[1688278019563,55.0,18.979,18.973,22.294]
[1688278019752,22.289,18.978,18.973,22.294]
[1688278023452,22.289,18.978,18.972,22.295]
[1688278023854,22.287,18.98,18.972,22.295]
[1688278026775,22.287,18.98,18.971,22.296]
[1688278028070,171.13633069,18.986,18.964,57.422]
[1688278028071,22.293,18.974,18.964,57.422]
[1688278029745,22.293,18.974,18.962,26.43040143]
[1688278029867,22.293,18.974,18.961,157.3736]
[1688278030073,22.293,18.974,18.962,20.0]
[1688278030369,22.293,18.974,18.962,22.306]
[1688278030686,22.293,18.974,18.94,99.06]
[1688278030687,19.76,18.97,18.94,99.06]
[1688278030979,184.535,18.961,18.942,104.896]
[1688278031275,184.535,18.961,18.946,22.325]
[1688278031570,55.0,18.96,18.946,22.325]
[1688278031778,22.315,18.956,18.946,22.325]
[1688278033778,55.0,18.96,18.946,22.325]
[1688278033978,22.313,18.958,18.946,22.325]
[1688278036862,57.44,18.959,18.946,22.325]
[1688278036863,22.317,18.954,18.946,22.325]
[1688278042382,22.317,18.955,18.946,22.325]
[1688278045597,22.311,18.959,18.947,55.0]
[1688278045893,22.311,18.96,18.95,22.321]
[1688278046785,114.842,18.965,18.95,42.201]
[1688278046786,57.421,18.965,18.95,42.201]
[1688278046980,22.305,18.964,18.951,75.0]
[1688278047185,22.305,18.964,18.954,79.769]
[1688278047498,20.07,18.97,18.954,79.769]
[1688278047675,22.301,18.968,18.959,22.31]
[1688278050081,57.399,18.973,18.959,22.31]
[1688278050082,22.3,18.969,18.959,22.31]
[1688278050298,22.301,18.968,18.952,94.4386]
[1688278050478,22.301,18.968,18.955,22.315]
[1688278051300,22.306,18.964,18.955,22.315]
[1688278055698,22.303,18.966,18.955,22.315]
[1688278056777,22.307,18.962,18.955,22.315]
[1688278057174,22.307,18.963,18.955,22.315]
[1688278058685,22.31,18.96,18.95,57.466]
[1688278058995,22.312,18.958,18.953,22.317]